[Event "Early-Titled-Tuesday-Blitz-March-12-2024"]
[Site "Chess.com"]
[Date "2024.03.12"]
[Round "9"]
[White "temus_galaktionov"]
[Black "Baronessa08"]
[Result "1-0"]
[WhiteElo "2864"]
[BlackElo "2572"]
[TimeControl "180+1"]
[EndTime "9:43:21 PDT"]
[Termination "temus_galaktionov won by resignation"]

1. d4 {[%clk 0:02:59.7]} 1... d5 {[%clk 0:02:59.3]} 2. Nf3 {[%clk 0:02:58.4]}
2... Nf6 {[%clk 0:02:57.8]} 3. c4 {[%clk 0:02:57.9]} 3... dxc4 {[%clk
0:02:56.4]} 4. e3 {[%clk 0:02:57.9]} 4... e6 {[%clk 0:02:55]} 5. Bxc4 {[%clk
0:02:57.5]} 5... c5 {[%clk 0:02:54.4]} 6. O-O {[%clk 0:02:56.7]} 6... Nc6 {[%clk
0:02:54.7]} 7. dxc5 {[%clk 0:02:57.3]} 7... Bxc5 {[%clk 0:02:54.4]} 8. Qxd8+
{[%clk 0:02:55.4]} 8... Kxd8 {[%clk 0:02:55.3]} 9. Rd1+ {[%clk 0:02:55.6]} 9...
Ke7 {[%clk 0:02:55.5]} 10. Nbd2 {[%clk 0:02:56.5]} 10... Rd8 {[%clk 0:02:52.4]}
11. Be2 {[%clk 0:02:56]} 11... b6 {[%clk 0:02:44.5]} 12. Ne1 {[%clk 0:02:52.1]}
12... Bb7 {[%clk 0:02:43]} 13. Nd3 {[%clk 0:02:51.9]} 13... Bd6 {[%clk
0:02:41.8]} 14. Nc4 {[%clk 0:02:52.1]} 14... Bc7 {[%clk 0:02:35.8]} 15. b3
{[%clk 0:02:52]} 15... Nd5 {[%clk 0:02:19.4]} 16. Ba3+ {[%clk 0:02:50.9]} 16...
Ke8 {[%clk 0:02:19.1]} 17. Rac1 {[%clk 0:02:51.5]} 17... Rac8 {[%clk 0:02:16.3]}
18. g3 {[%clk 0:02:40.3]} 18... f5 {[%clk 0:02:09.3]} 19. h4 {[%clk 0:02:26.4]}
19... b5 {[%clk 0:02:07.3]} 20. Nd2 {[%clk 0:02:20.2]} 20... b4 {[%clk
0:02:01.8]} 21. Nc5 {[%clk 0:02:17.4]} 21... bxa3 {[%clk 0:01:59.6]} 22. Nxb7
{[%clk 0:02:17.1]} 22... Ncb4 {[%clk 0:01:44.9]} 23. Nxd8 {[%clk 0:02:16.3]}
23... Rxd8 {[%clk 0:01:43.2]} 24. Nb1 {[%clk 0:01:30.2]} 24... Nxa2 {[%clk
0:01:39.8]} 25. Rc4 {[%clk 0:01:29.9]} 25... Bd6 {[%clk 0:01:31.8]} 26. Bf3
{[%clk 0:01:25.5]} 26... Rb8 {[%clk 0:01:19.8]} 27. Bxd5 {[%clk 0:01:12]} 27...
exd5 {[%clk 0:01:18.9]} 28. Rxd5 {[%clk 0:01:11.8]} 28... Rxb3 {[%clk
0:01:03.3]} 29. Rxd6 {[%clk 0:01:10.1]} 29... Rxb1+ {[%clk 0:01:03.3]} 30. Kg2
{[%clk 0:01:10.2]} 30... Nb4 {[%clk 0:01:01.7]} 31. Rxb4 {[%clk 0:00:53.5]}
31... Rxb4 {[%clk 0:01:01.7]} 32. Ra6 {[%clk 0:00:54.4]} 32... Rb3 {[%clk
0:00:34.9]} 33. Rxa7 {[%clk 0:00:52.6]} 33... Kf8 {[%clk 0:00:35.1]} 34. h5
{[%clk 0:00:50.7]} 34... Kg8 {[%clk 0:00:28.8]} 35. Kf3 {[%clk 0:00:49.6]} 35...
g5 {[%clk 0:00:21.9]} 36. h6 {[%clk 0:00:46.1]} 36... Rb6 {[%clk 0:00:12.3]} 37.
Rxa3 {[%clk 0:00:42.3]} 37... Rxh6 {[%clk 0:00:12.2]} 38. Ra7 {[%clk 0:00:42.8]}
38... Rf6 {[%clk 0:00:11.3]} 39. Rd7 {[%clk 0:00:38.9]} 39... h5 {[%clk
0:00:10.7]} 40. Kg2 {[%clk 0:00:37.6]} 40... Rf7 {[%clk 0:00:09.8]} 41. Rd6
{[%clk 0:00:35.1]} 41... Kg7 {[%clk 0:00:09.9]} 42. Kh3 {[%clk 0:00:35.7]} 42...
Rf8 {[%clk 0:00:09.5]} 43. f4 {[%clk 0:00:35.5]} 43... gxf4 {[%clk 0:00:06.2]}
44. exf4 {[%clk 0:00:36.4]} 44... Rf6 {[%clk 0:00:06.1]} 45. Rd8 {[%clk
0:00:31]} 45... Kg6 {[%clk 0:00:04.6]} 46. Kh4 {[%clk 0:00:31]} 46... Ra6 {[%clk
0:00:04.6]} 47. Rg8+ {[%clk 0:00:30.5]} 47... Kf7 {[%clk 0:00:04.4]} 48. Rg5
{[%clk 0:00:29.7]} 48... Kf6 {[%clk 0:00:05]} 49. Rxh5 {[%clk 0:00:29.3]} 49...
Ra1 {[%clk 0:00:05.1]} 50. Rh6+ {[%clk 0:00:29.3]} 50... Kg7 {[%clk 0:00:05]}
51. Kg5 {[%clk 0:00:28.2]} 51... Rg1 {[%clk 0:00:04.1]} 52. Rh3 {[%clk
0:00:25.2]} 52... Ra1 {[%clk 0:00:01.9]} 53. Kxf5 {[%clk 0:00:25.4]} 1-0

[Event "Early-Titled-Tuesday-Blitz-March-12-2024"]
[Site "Chess.com"]
[Date "2024.03.12"]
[Round "9"]
[White "VladimirKramnik"]
[Black "Blitzstream"]
[Result "1-0"]
[WhiteElo "2991"]
[BlackElo "2804"]
[TimeControl "180+1"]
[EndTime "9:43:24 PDT"]
[Termination "VladimirKramnik won by resignation"]

1. Nf3 {[%clk 0:03:00.9]} 1... c5 {[%clk 0:02:59.8]} 2. e4 {[%clk 0:03:00]} 2...
d6 {[%clk 0:02:59.6]} 3. d4 {[%clk 0:03:00.2]} 3... cxd4 {[%clk 0:03:00.5]} 4.
Nxd4 {[%clk 0:03:00.4]} 4... Nf6 {[%clk 0:03:01.2]} 5. Nc3 {[%clk 0:03:00.5]}
5... a6 {[%clk 0:03:01.5]} 6. g3 {[%clk 0:03:00]} 6... e6 {[%clk 0:02:58.3]} 7.
Bg2 {[%clk 0:02:59.3]} 7... Be7 {[%clk 0:02:58.9]} 8. Be3 {[%clk 0:02:59.2]}
8... O-O {[%clk 0:02:59.3]} 9. Qe2 {[%clk 0:02:58.5]} 9... Nc6 {[%clk
0:02:52.4]} 10. O-O-O {[%clk 0:02:56]} 10... Bd7 {[%clk 0:02:50.5]} 11. f4
{[%clk 0:02:55.2]} 11... Rc8 {[%clk 0:02:36.1]} 12. Kb1 {[%clk 0:02:44.1]} 12...
Nb4 {[%clk 0:02:12.5]} 13. a3 {[%clk 0:02:27.2]} 13... Rxc3 {[%clk 0:02:11]} 14.
axb4 {[%clk 0:02:27]} 14... Rc8 {[%clk 0:01:59.5]} 15. g4 {[%clk 0:02:22.1]}
15... e5 {[%clk 0:01:53.9]} 16. Nf5 {[%clk 0:02:16.9]} 16... Bxf5 {[%clk
0:01:44.9]} 17. exf5 {[%clk 0:02:16.9]} 17... Qc7 {[%clk 0:01:36.2]} 18. g5
{[%clk 0:02:11.3]} 18... Ng4 {[%clk 0:01:36.6]} 19. Bc1 {[%clk 0:02:01.4]} 19...
exf4 {[%clk 0:01:29.6]} 20. f6 {[%clk 0:02:01.4]} 20... Nxf6 {[%clk 0:01:21.5]}
21. gxf6 {[%clk 0:01:53.9]} 21... Bxf6 {[%clk 0:01:22.4]} 22. Bd5 {[%clk
0:01:44.3]} 22... Rfe8 {[%clk 0:01:19.1]} 23. Qd3 {[%clk 0:01:43.6]} 23... Re5
{[%clk 0:01:16.2]} 24. Qb3 {[%clk 0:01:36.3]} 24... Re2 {[%clk 0:01:04.2]} 25.
Rd2 {[%clk 0:01:35.8]} 25... Rce8 {[%clk 0:00:50.5]} 26. Rxe2 {[%clk 0:01:34.1]}
26... Rxe2 {[%clk 0:00:51.4]} 27. Bxf4 {[%clk 0:01:30.2]} 27... Qe7 {[%clk
0:00:39.1]} 28. Qf3 {[%clk 0:01:24.5]} 28... Re1+ {[%clk 0:00:31.8]} 29. Bc1
{[%clk 0:01:19.9]} 29... b5 {[%clk 0:00:22.3]} 30. Rxe1 {[%clk 0:01:09.4]} 30...
Qxe1 {[%clk 0:00:22]} 31. Qe3 {[%clk 0:01:08.3]} 31... Qxe3 {[%clk 0:00:19.4]}
32. Bxe3 {[%clk 0:01:08.1]} 32... Be5 {[%clk 0:00:19.6]} 33. h3 {[%clk 0:01:07]}
33... h6 {[%clk 0:00:17.5]} 34. c4 {[%clk 0:01:05.6]} 34... bxc4 {[%clk
0:00:16.7]} 35. Bxc4 {[%clk 0:01:04.9]} 35... g5 {[%clk 0:00:17.3]} 36. Bxa6
{[%clk 0:01:02.3]} 36... f5 {[%clk 0:00:18.2]} 37. Bc4+ {[%clk 0:01:01.5]} 37...
d5 {[%clk 0:00:17.3]} 38. Bxd5+ {[%clk 0:01:01]} 38... Kf8 {[%clk 0:00:18.2]}
39. b5 {[%clk 0:01:00.5]} 39... Ke7 {[%clk 0:00:18.9]} 40. Bc5+ {[%clk
0:00:58.7]} 40... Kd7 {[%clk 0:00:18.8]} 41. b6 {[%clk 0:00:58.4]} 41... g4
{[%clk 0:00:18.7]} 42. hxg4 {[%clk 0:00:53.4]} 42... fxg4 {[%clk 0:00:19.6]} 43.
b7 {[%clk 0:00:51.1]} 43... Bb8 {[%clk 0:00:19.2]} 44. Kc2 {[%clk 0:00:47.1]}
44... h5 {[%clk 0:00:19.5]} 45. Kd3 {[%clk 0:00:43.2]} 45... h4 {[%clk
0:00:19.8]} 46. Ke4 {[%clk 0:00:35.3]} 46... h3 {[%clk 0:00:18.7]} 47. Kf5
{[%clk 0:00:30.9]} 47... g3 {[%clk 0:00:18.3]} 48. Kg4 {[%clk 0:00:31.1]} 48...
h2 {[%clk 0:00:14]} 49. Kh3 {[%clk 0:00:31.1]} 49... Kd8 {[%clk 0:00:13.6]} 50.
Kg2 {[%clk 0:00:30.5]} 50... Kd7 {[%clk 0:00:14.2]} 51. b4 {[%clk 0:00:28.5]}
51... Kd8 {[%clk 0:00:14.4]} 52. Be3 {[%clk 0:00:25]} 52... Kd7 {[%clk
0:00:14.3]} 53. Bg5 {[%clk 0:00:25]} 53... Ke8 {[%clk 0:00:12.9]} 54. Bh4 {[%clk
0:00:24.3]} 54... Kd7 {[%clk 0:00:13.3]} 55. b5 {[%clk 0:00:23.7]} 55... Ke8
{[%clk 0:00:13.2]} 56. b6 {[%clk 0:00:19.4]} 56... Kd7 {[%clk 0:00:13.3]} 57.
Bg5 {[%clk 0:00:19.5]} 57... Ke8 {[%clk 0:00:07.4]} 58. Be6 {[%clk 0:00:18.9]}
58... Kf8 {[%clk 0:00:06.5]} 59. Bd8 {[%clk 0:00:18.2]} 1-0

[Event "Early-Titled-Tuesday-Blitz-March-12-2024"]
[Site "Chess.com"]
[Date "2024.03.12"]
[Round "9"]
[White "TregubovP"]
[Black "Triumphmate"]
[Result "1-0"]
[WhiteElo "2676"]
[BlackElo "2518"]
[TimeControl "180+1"]
[EndTime "9:43:26 PDT"]
[Termination "TregubovP won by checkmate"]

1. e4 {[%clk 0:03:00.9]} 1... d5 {[%clk 0:02:59.4]} 2. exd5 {[%clk 0:03:00.4]}
2... Nf6 {[%clk 0:02:59.9]} 3. d4 {[%clk 0:02:59.1]} 3... Bg4 {[%clk 0:03:00.2]}
4. Be2 {[%clk 0:02:58.2]} 4... Bxe2 {[%clk 0:02:59.7]} 5. Qxe2 {[%clk
0:02:50.3]} 5... Qxd5 {[%clk 0:03:00.6]} 6. Nf3 {[%clk 0:02:49.2]} 6... Nc6
{[%clk 0:03:00.9]} 7. c4 {[%clk 0:02:36.3]} 7... Qe4 {[%clk 0:02:55.5]} 8. Nc3
{[%clk 0:02:26.7]} 8... Qxe2+ {[%clk 0:02:52.6]} 9. Kxe2 {[%clk 0:02:27.2]} 9...
e6 {[%clk 0:02:51.7]} 10. Rd1 {[%clk 0:02:10.4]} 10... O-O-O {[%clk 0:02:42.2]}
11. Be3 {[%clk 0:02:08.7]} 11... Be7 {[%clk 0:02:37.8]} 12. Rac1 {[%clk
0:02:01.6]} 12... Rd7 {[%clk 0:02:35.1]} 13. a3 {[%clk 0:01:58.4]} 13... Rhd8
{[%clk 0:02:33.5]} 14. b4 {[%clk 0:01:58.2]} 14... a5 {[%clk 0:02:19.8]} 15. b5
{[%clk 0:01:54.6]} 15... Nb8 {[%clk 0:02:16.2]} 16. Ne5 {[%clk 0:01:52.4]} 16...
Bxa3 {[%clk 0:02:14.6]} 17. Ra1 {[%clk 0:01:12.3]} 17... Bb2 {[%clk 0:02:14.3]}
18. Nxd7 {[%clk 0:01:12.3]} 18... Rxd7 {[%clk 0:01:51.8]} 19. Na4 {[%clk
0:01:08.7]} 19... Bxa1 {[%clk 0:01:51.6]} 20. Rxa1 {[%clk 0:01:09.3]} 20... b6
{[%clk 0:01:51.2]} 21. c5 {[%clk 0:01:06.2]} 21... Nd5 {[%clk 0:01:45.1]} 22. c6
{[%clk 0:01:06.4]} 22... Rd6 {[%clk 0:01:38.1]} 23. Bd2 {[%clk 0:01:04]} 23...
Ne7 {[%clk 0:01:30]} 24. Be3 {[%clk 0:00:53.7]} 24... Nbxc6 {[%clk 0:01:23.4]}
25. bxc6 {[%clk 0:00:52.9]} 25... Nxc6 {[%clk 0:01:24.3]} 26. Rd1 {[%clk
0:00:50.3]} 26... Kb7 {[%clk 0:01:20.5]} 27. Nc3 {[%clk 0:00:50.3]} 27... Ka6
{[%clk 0:01:18.5]} 28. Ne4 {[%clk 0:00:48.7]} 28... Rd7 {[%clk 0:01:14.1]} 29.
Ng5 {[%clk 0:00:44]} 29... f6 {[%clk 0:01:01.5]} 30. Nxe6 {[%clk 0:00:40.3]}
30... a4 {[%clk 0:00:57.3]} 31. d5 {[%clk 0:00:39.9]} 31... Nb4 {[%clk 0:00:54]}
32. Rd4 {[%clk 0:00:34.7]} 32... Kb5 {[%clk 0:00:41.8]} 33. Bd2 {[%clk
0:00:32.5]} 33... Nxd5 {[%clk 0:00:33.8]} 34. Rxd5+ {[%clk 0:00:30.2]} 34...
Rxd5 {[%clk 0:00:34.7]} 35. Nxc7+ {[%clk 0:00:30.8]} 35... Kc4 {[%clk
0:00:34.4]} 36. Nxd5 {[%clk 0:00:31.3]} 36... Kxd5 {[%clk 0:00:35]} 37. Kd3
{[%clk 0:00:31.8]} 37... b5 {[%clk 0:00:34.6]} 38. Bb4 {[%clk 0:00:31.6]} 38...
f5 {[%clk 0:00:33.5]} 39. f4 {[%clk 0:00:30.8]} 39... h6 {[%clk 0:00:33]} 40. h4
{[%clk 0:00:25.9]} 40... g6 {[%clk 0:00:33.3]} 41. g3 {[%clk 0:00:25.6]} 41...
Ke6 {[%clk 0:00:21.7]} 42. Kd4 {[%clk 0:00:25]} 42... Kf6 {[%clk 0:00:20.3]} 43.
Kc5 {[%clk 0:00:20.5]} 43... g5 {[%clk 0:00:20.6]} 44. h5 {[%clk 0:00:19.5]}
44... gxf4 {[%clk 0:00:18.6]} 45. gxf4 {[%clk 0:00:19.7]} 45... Ke6 {[%clk
0:00:18.7]} 46. Kc6 {[%clk 0:00:19.8]} 46... Kf7 {[%clk 0:00:17.2]} 47. Kxb5
{[%clk 0:00:19.8]} 47... Ke6 {[%clk 0:00:17.5]} 48. Kc6 {[%clk 0:00:19.1]} 48...
Kf6 {[%clk 0:00:16.5]} 49. Kd5 {[%clk 0:00:19.4]} 49... Kf7 {[%clk 0:00:16.7]}
50. Ke5 {[%clk 0:00:19.4]} 50... a3 {[%clk 0:00:16.1]} 51. Bxa3 {[%clk
0:00:18.8]} 51... Kg8 {[%clk 0:00:16.5]} 52. Kxf5 {[%clk 0:00:18.6]} 52... Kh7
{[%clk 0:00:17.4]} 53. Kf6 {[%clk 0:00:17.8]} 53... Kh8 {[%clk 0:00:16.5]} 54.
Kg6 {[%clk 0:00:18]} 54... Kg8 {[%clk 0:00:17.4]} 55. Kxh6 {[%clk 0:00:17.9]}
55... Kh8 {[%clk 0:00:17.5]} 56. Kg6 {[%clk 0:00:18]} 56... Kg8 {[%clk
0:00:18.1]} 57. h6 {[%clk 0:00:18.5]} 57... Kh8 {[%clk 0:00:19]} 58. Bb4 {[%clk
0:00:17]} 58... Kg8 {[%clk 0:00:19.9]} 59. h7+ {[%clk 0:00:17.5]} 59... Kh8
{[%clk 0:00:20]} 60. Bc3# {[%clk 0:00:18.1]} 1-0

[Event "Early-Titled-Tuesday-Blitz-March-12-2024"]
[Site "Chess.com"]
[Date "2024.03.12"]
[Round "9"]
[White "Rud_Makarian"]
[Black "BilodeauA"]
[Result "1-0"]
[WhiteElo "3039"]
[BlackElo "3005"]
[TimeControl "180+1"]
[EndTime "9:43:27 PDT"]
[Termination "Rud_Makarian won on time"]

1. d4 {[%clk 0:02:59.8]} 1... Nf6 {[%clk 0:03:00.4]} 2. c4 {[%clk 0:02:59.8]}
2... e6 {[%clk 0:03:00.9]} 3. Nf3 {[%clk 0:02:59.8]} 3... d5 {[%clk 0:03:00.4]}
4. g3 {[%clk 0:02:59.2]} 4... Bb4+ {[%clk 0:02:58.9]} 5. Bd2 {[%clk 0:02:58.8]}
5... Be7 {[%clk 0:02:59.1]} 6. Qc2 {[%clk 0:02:59]} 6... O-O {[%clk 0:02:55.9]}
7. Bg2 {[%clk 0:02:59.2]} 7... Nbd7 {[%clk 0:02:56]} 8. O-O {[%clk 0:02:59.5]}
8... c6 {[%clk 0:02:55.9]} 9. Bf4 {[%clk 0:03:00.1]} 9... b6 {[%clk 0:02:53.6]}
10. Nbd2 {[%clk 0:03:00.1]} 10... Nh5 {[%clk 0:02:51]} 11. e3 {[%clk 0:02:59.6]}
11... Bb7 {[%clk 0:02:30]} 12. cxd5 {[%clk 0:02:59.2]} 12... exd5 {[%clk
0:02:23.5]} 13. Nb1 {[%clk 0:02:57.5]} 13... Nxf4 {[%clk 0:02:20.7]} 14. exf4
{[%clk 0:02:58.4]} 14... Re8 {[%clk 0:01:50]} 15. Nc3 {[%clk 0:02:58.1]} 15...
f6 {[%clk 0:01:48.6]} 16. Rfe1 {[%clk 0:02:44.2]} 16... Nf8 {[%clk 0:01:48.6]}
17. Nh4 {[%clk 0:02:38.6]} 17... Bd6 {[%clk 0:01:36.3]} 18. Nf5 {[%clk
0:02:38.4]} 18... Qc7 {[%clk 0:01:34.1]} 19. Rac1 {[%clk 0:02:26.2]} 19... Rxe1+
{[%clk 0:01:22.8]} 20. Rxe1 {[%clk 0:02:27.1]} 20... Rd8 {[%clk 0:01:22.6]} 21.
h4 {[%clk 0:02:12.6]} 21... Bc8 {[%clk 0:01:22.8]} 22. h5 {[%clk 0:02:04.6]}
22... Bxf5 {[%clk 0:01:20.6]} 23. Qxf5 {[%clk 0:02:05.5]} 23... Qd7 {[%clk
0:01:11.4]} 24. Qxd7 {[%clk 0:01:44.1]} 24... Nxd7 {[%clk 0:01:11.5]} 25. Rc1
{[%clk 0:01:40.2]} 25... Kf7 {[%clk 0:01:04.7]} 26. Nd1 {[%clk 0:01:37]} 26...
Nb8 {[%clk 0:01:04.6]} 27. Ne3 {[%clk 0:01:37]} 27... Bf8 {[%clk 0:01:03.9]} 28.
Kf1 {[%clk 0:01:33.9]} 28... Ke7 {[%clk 0:00:57.6]} 29. Ke2 {[%clk 0:01:28]}
29... Kd6 {[%clk 0:00:57.6]} 30. Kd3 {[%clk 0:01:28.2]} 30... a5 {[%clk
0:00:54.5]} 31. g4 {[%clk 0:01:24.9]} 31... Na6 {[%clk 0:00:51.3]} 32. a3 {[%clk
0:01:23.6]} 32... Nc7 {[%clk 0:00:49.6]} 33. Nf5+ {[%clk 0:01:04.7]} 33... Kd7
{[%clk 0:00:49.5]} 34. Ng3 {[%clk 0:00:58.2]} 34... Ne6 {[%clk 0:00:48]} 35. Ne2
{[%clk 0:00:58.2]} 35... Bd6 {[%clk 0:00:48.6]} 36. f5 {[%clk 0:00:54.4]} 36...
Nf4+ {[%clk 0:00:35.9]} 37. Nxf4 {[%clk 0:00:54.5]} 37... Bxf4 {[%clk
0:00:36.8]} 38. Re1 {[%clk 0:00:54.6]} 38... h6 {[%clk 0:00:35.5]} 39. Re6
{[%clk 0:00:46.8]} 39... a4 {[%clk 0:00:34.5]} 40. Bf3 {[%clk 0:00:44.7]} 40...
Ra8 {[%clk 0:00:34.3]} 41. Bd1 {[%clk 0:00:41.5]} 41... Ra5 {[%clk 0:00:34.2]}
42. Kc3 {[%clk 0:00:39]} 42... Bd6 {[%clk 0:00:31.8]} 43. g5 {[%clk 0:00:26.3]}
43... fxg5 {[%clk 0:00:13.2]} 44. Bg4 {[%clk 0:00:25.8]} 44... Kc7 {[%clk
0:00:05.6]} 45. Rg6 {[%clk 0:00:21.7]} 45... Bf8 {[%clk 0:00:05.8]} 46. f6
{[%clk 0:00:22.4]} 46... gxf6 {[%clk 0:00:06.4]} 47. Rxf6 {[%clk 0:00:23]} 47...
Bd6 {[%clk 0:00:04]} 48. Rxh6 {[%clk 0:00:20.7]} 48... c5 {[%clk 0:00:01.8]} 49.
Rh7+ {[%clk 0:00:21.1]} 49... Kb8 {[%clk 0:00:01.7]} 50. h6 {[%clk 0:00:19.4]}
50... cxd4+ {[%clk 0:00:02.2]} 51. Kxd4 {[%clk 0:00:16.7]} 51... Bc5+ {[%clk
0:00:01.9]} 52. Kd3 {[%clk 0:00:16.7]} 52... Rb5 {[%clk 0:00:01.6]} 53. Rd7
{[%clk 0:00:10.4]} 53... Rb3+ {[%clk 0:00:01.6]} 54. Kc2 {[%clk 0:00:09.6]}
54... Bd4 {[%clk 0:00:02.3]} 55. Rxd5 {[%clk 0:00:09]} 1-0

[Event "Early-Titled-Tuesday-Blitz-March-12-2024"]
[Site "Chess.com"]
[Date "2024.03.12"]
[Round "9"]
[White "HajiyevKanan"]
[Black "falzehope0"]
[Result "0-1"]
[WhiteElo "2552"]
[BlackElo "2445"]
[TimeControl "180+1"]
[EndTime "9:43:27 PDT"]
[Termination "falzehope0 won by checkmate"]

1. d4 {[%clk 0:03:00.9]} 1... d6 {[%clk 0:02:58.9]} 2. Nf3 {[%clk 0:03:01.8]}
2... Nf6 {[%clk 0:02:58.8]} 3. g3 {[%clk 0:03:01.9]} 3... Nbd7 {[%clk
0:02:59.2]} 4. Bg2 {[%clk 0:03:02.6]} 4... e5 {[%clk 0:02:59.5]} 5. O-O {[%clk
0:03:03.5]} 5... Be7 {[%clk 0:02:59.7]} 6. b3 {[%clk 0:03:04.1]} 6... O-O {[%clk
0:02:58.9]} 7. Bb2 {[%clk 0:03:04.3]} 7... e4 {[%clk 0:02:56.1]} 8. Ne1 {[%clk
0:03:04.4]} 8... d5 {[%clk 0:02:56.4]} 9. c4 {[%clk 0:03:04.7]} 9... c6 {[%clk
0:02:56.1]} 10. Nc3 {[%clk 0:03:04.7]} 10... Re8 {[%clk 0:02:55.7]} 11. Nc2
{[%clk 0:03:05.3]} 11... a6 {[%clk 0:02:53]} 12. a4 {[%clk 0:03:05.4]} 12... Nf8
{[%clk 0:02:52.4]} 13. Ne3 {[%clk 0:03:05.6]} 13... Ng6 {[%clk 0:02:51.8]} 14.
a5 {[%clk 0:03:04.5]} 14... Bb4 {[%clk 0:02:45.3]} 15. Na4 {[%clk 0:02:52.4]}
15... Bxa5 {[%clk 0:02:37.1]} 16. c5 {[%clk 0:02:51.5]} 16... Bc7 {[%clk
0:02:35.4]} 17. h4 {[%clk 0:02:48.6]} 17... Nh5 {[%clk 0:02:18.9]} 18. Qd2
{[%clk 0:02:47.2]} 18... Nxh4 {[%clk 0:02:16.5]} 19. Nb6 {[%clk 0:02:38.3]}
19... Nxg2 {[%clk 0:02:05.9]} 20. Nxa8 {[%clk 0:02:32.8]} 20... Nxe3 {[%clk
0:01:49.5]} 21. Qxe3 {[%clk 0:02:29.3]} 21... Bb8 {[%clk 0:01:35.6]} 22. Nb6
{[%clk 0:02:29.1]} 22... Bh3 {[%clk 0:01:33.6]} 23. Rfe1 {[%clk 0:02:29.5]}
23... Nf6 {[%clk 0:01:33.2]} 24. Qg5 {[%clk 0:02:29]} 24... Qe7 {[%clk
0:01:20.7]} 25. Bc1 {[%clk 0:02:28.6]} 25... Qe6 {[%clk 0:01:19.7]} 26. Qh4
{[%clk 0:02:28.4]} 26... h6 {[%clk 0:01:15.1]} 27. b4 {[%clk 0:02:16.8]} 27...
g5 {[%clk 0:01:11.9]} 28. Qxh6 {[%clk 0:02:15]} 28... Bf5 {[%clk 0:00:49.2]} 29.
Bxg5 {[%clk 0:02:11.6]} 29... Bg6 {[%clk 0:00:48.7]} 30. e3 {[%clk 0:02:03.3]}
30... Nh5 {[%clk 0:00:41.7]} 31. Bf4 {[%clk 0:01:46.7]} 31... Bxf4 {[%clk
0:00:28.6]} 32. exf4 {[%clk 0:01:40.7]} 32... Qh3 {[%clk 0:00:28.6]} 33. Qg5
{[%clk 0:01:38.9]} 33... Kg7 {[%clk 0:00:14.7]} 34. f5 {[%clk 0:01:37.8]} 34...
Qxf5 {[%clk 0:00:12.9]} 35. Qxf5 {[%clk 0:01:37.8]} 35... Bxf5 {[%clk
0:00:13.8]} 36. b5 {[%clk 0:01:30.2]} 36... axb5 {[%clk 0:00:13.1]} 37. Ra7
{[%clk 0:01:30.3]} 37... Bg4 {[%clk 0:00:12.9]} 38. f4 {[%clk 0:01:08.1]} 38...
Re7 {[%clk 0:00:11.6]} 39. Kf2 {[%clk 0:01:07.3]} 39... Kg6 {[%clk 0:00:10.1]}
40. Nc8 {[%clk 0:01:02.4]} 40... Bxc8 {[%clk 0:00:08.9]} 41. Ra8 {[%clk
0:01:02.6]} 41... Bg4 {[%clk 0:00:08.5]} 42. Rh8 {[%clk 0:01:00.8]} 42... Ng7
{[%clk 0:00:08.1]} 43. Reh1 {[%clk 0:01:00]} 43... f6 {[%clk 0:00:06.6]} 44.
R1h6+ {[%clk 0:00:58.5]} 44... Kf7 {[%clk 0:00:06.6]} 45. R8h7 {[%clk 0:00:56]}
45... e3+ {[%clk 0:00:06.6]} 46. Ke1 {[%clk 0:00:56.3]} 46... b4 {[%clk
0:00:04.8]} 47. Rh4 {[%clk 0:00:51.8]} 47... f5 {[%clk 0:00:04.5]} 48. Rh8
{[%clk 0:00:50.2]} 48... b3 {[%clk 0:00:02.8]} 49. Rh2 {[%clk 0:00:50.1]} 49...
e2 {[%clk 0:00:02.2]} 50. Rh1 {[%clk 0:00:34.4]} 50... b2 {[%clk 0:00:02.4]} 51.
Kd2 {[%clk 0:00:34.5]} 51... e1=Q+ {[%clk 0:00:02.3]} 52. Rxe1 {[%clk
0:00:34.6]} 52... Rxe1 {[%clk 0:00:02.8]} 53. Kxe1 {[%clk 0:00:33.9]} 53...
b1=Q+ {[%clk 0:00:03.7]} 54. Kd2 {[%clk 0:00:34.6]} 54... Qd1+ {[%clk
0:00:03.8]} 55. Kc3 {[%clk 0:00:35.2]} 55... Qe2 {[%clk 0:00:04.2]} 56. Rh6
{[%clk 0:00:32.8]} 56... Qe3+ {[%clk 0:00:04.6]} 57. Kb4 {[%clk 0:00:33.5]}
57... Qxd4+ {[%clk 0:00:05]} 58. Kb3 {[%clk 0:00:32.9]} 58... Qxc5 {[%clk
0:00:05.2]} 59. Rh7 {[%clk 0:00:32.4]} 59... Qc4+ {[%clk 0:00:05.6]} 60. Kb2
{[%clk 0:00:33]} 60... d4 {[%clk 0:00:06.3]} 61. Kb1 {[%clk 0:00:32.9]} 61... d3
{[%clk 0:00:06.9]} 62. Rh2 {[%clk 0:00:33.4]} 62... Qc3 {[%clk 0:00:06.6]} 63.
Ka2 {[%clk 0:00:32.3]} 63... d2 {[%clk 0:00:06.9]} 64. Rh1 {[%clk 0:00:31.9]}
64... d1=Q {[%clk 0:00:06.6]} 65. Rxd1 {[%clk 0:00:31.4]} 65... Bxd1 {[%clk
0:00:06.3]} 66. Kb1 {[%clk 0:00:31.4]} 66... Bc2+ {[%clk 0:00:05.8]} 67. Ka2
{[%clk 0:00:30.8]} 67... Bb3+ {[%clk 0:00:06.2]} 68. Kb1 {[%clk 0:00:31]} 68...
Qc2+ {[%clk 0:00:06.1]} 69. Ka1 {[%clk 0:00:31.7]} 69... Qa2# {[%clk 0:00:06.9]}
0-1